bitfinex-derivatives/quotes_BTCF0:USTF0_20241223
["timestamp","ask_amount","ask_price","bid_price","bid_amount"]
[1734994577102,0.008,94766.0,94765.0,0.052827]
[1734994582019,0.008,94766.0,94763.0,0.314454]
[1734994582922,0.008,94766.0,94765.0,0.052827]
[1734994583620,0.1137,94778.0,94777.0,0.05282]
[1734994583914,0.15787052,94797.0,94777.0,0.41362]
[1734994584117,0.15787052,94797.0,94796.0,0.41361]
[1734994584514,0.18832406,94803.0,94796.0,0.3608]
[1734994584820,0.18832406,94803.0,94799.0,0.052808]
[1734994586323,0.104,94800.0,94799.0,0.052808]
[1734994586618,0.113,94800.0,94799.0,0.053808]
[1734994587018,0.113,94800.0,94796.0,0.341608]
[1734994587715,0.113,94800.0,94799.0,0.413608]
[1734994588311,0.111,94800.0,94799.0,0.413608]
[1734994588915,0.109,94800.0,94799.0,0.413608]
[1734994589112,0.1173,94808.0,94799.0,0.3608]
[1734994589315,0.1173,94808.0,94807.0,0.3608]
[1734994590323,0.1263,94808.0,94807.0,0.3608]
[1734994591122,0.1283,94808.0,94807.0,0.3608]
[1734994591723,0.1193,94808.0,94807.0,0.3608]
[1734994591920,0.1223,94808.0,94807.0,0.2888]
[1734994592526,0.1223,94808.0,94807.0,0.341604]
[1734994595626,0.005,94808.0,94807.0,0.341604]
[1734994596023,0.005,94808.0,94807.0,0.38990187]
[1734994597017,0.005,94808.0,94807.0,0.31690187]
[1734994597429,0.005,94808.0,94807.0,0.49240187]
[1734994597621,0.005,94808.0,94807.0,0.31690187]
[1734994601031,0.1083,94820.0,94815.0,0.052799]
[1734994601231,0.1083,94820.0,94807.0,0.26409787]
[1734994601232,0.1083,94820.0,94819.0,0.3608]
[1734994601623,0.1083,94820.0,94817.0,0.052798]
[1734994602126,0.1103,94820.0,94811.0,0.052801]
[1734994602730,0.1083,94820.0,94811.0,0.052801]
[1734994603029,0.1103,94820.0,94819.0,0.001]
[1734994603429,0.1103,94820.0,94817.0,0.001]
[1734994604535,0.1083,94820.0,94814.0,0.0528]
[1734994605727,0.0466576,94842.0,94814.0,0.0528]
[1734994605728,0.3608,94843.0,94819.0,0.001]
[1734994605924,0.3608,94854.0,94819.0,0.001]
[1734994605925,0.1138,94841.0,94840.0,0.052785]
[1734994606424,0.3608,94854.0,94850.0,0.05278]
[1734994606920,0.3608,94854.0,94841.0,0.03727737]
[1734994607122,0.3608,94854.0,94849.0,0.3546]
[1734994607325,0.3608,94854.0,94850.0,0.05278]
[1734994607531,0.3608,94854.0,94849.0,0.3546]
[1734994607733,0.3608,94854.0,94853.0,0.052778]
[1734994608734,0.1138,94860.0,94859.0,0.052775]
[1734994609625,0.1068,94874.0,94867.0,0.05277]
[1734994609839,0.1089,94872.0,94868.0,0.05277]
[1734994610034,0.15806373,94890.0,94866.0,0.3608]
[1734994610228,0.1089,94883.0,94874.0,0.08739623]
[1734994610431,0.1089,94883.0,94874.0,0.14016223]
[1734994610928,0.1089,94883.0,94879.0,0.052764]
[1734994611442,0.1089,94883.0,94874.0,0.08739623]
[1734994611632,0.3608,94905.0,94882.0,0.3608]
[1734994611832,0.1128,94905.0,94898.0,0.052753]
[1734994612027,0.1128,94905.0,94896.0,0.334313]
[1734994612440,0.06465934,94900.0,94898.0,0.052753]
[1734994615030,0.03780686,94900.0,94898.0,0.056753]
[1734994615235,0.32293597,94910.0,94908.0,0.052748]
[1734994615445,0.1049,94924.0,94914.0,0.052744]
[1734994615653,0.1049,94924.0,94914.0,0.14014023]
[1734994616940,0.1049,94924.0,94914.0,0.06714023]
[1734994617143,0.4657,94924.0,94914.0,0.06714023]
[1734994617647,0.3608,94924.0,94914.0,0.08739623]
[1734994618341,0.3608,94932.0,94918.0,0.3608]
[1734994618546,0.3608,94932.0,94922.0,0.08739623]
[1734994618747,0.1079,94935.0,94922.0,0.08739623]
[1734994619335,0.3608,94935.0,94928.0,0.052736]
[1734994619740,0.413528,94944.0,94928.0,0.052736]
[1734994620044,0.413528,94944.0,94920.0,0.08739623]
[1734994620045,0.3608,94933.0,94920.0,0.08739623]
[1734994620247,0.3608,94921.0,94920.0,0.08739623]
[1734994620449,0.3608,94924.0,94914.0,0.05284544]
[1734994620640,0.1113,94923.0,94912.0,0.35436]
[1734994621451,0.3608,94916.0,94913.0,0.08739623]
[1734994621636,0.3608,94916.0,94912.0,0.35436]
[1734994622448,0.3608,94916.0,94912.0,0.28136]
[1734994622644,0.27061257,94924.0,94912.0,0.28136]
[1734994622848,0.3608,94935.0,94920.0,0.3608]
[1734994623051,0.3608,94935.0,94925.0,0.08739623]
[1734994623551,0.3608,94935.0,94927.0,0.052737]
[1734994624142,0.3608,94935.0,94925.0,0.08739623]
[1734994624345,0.052727,94945.0,94931.0,0.052735]
[1734994624551,0.052728,94944.0,94935.0,0.08739623]
[1734994624848,0.3608,94946.0,94935.0,0.08739623]
[1734994625052,0.052729,94942.0,94935.0,0.08739623]
[1734994625251,0.3608,94946.0,94935.0,0.08739623]
[1734994625447,0.052729,94941.0,94935.0,0.08739623]
[1734994626150,0.052729,94941.0,94935.0,0.08839623]
[1734994626553,0.052729,94941.0,94935.0,0.08739623]
[1734994626851,0.052729,94941.0,94935.0,0.08939623]
[1734994627054,0.052729,94941.0,94935.0,0.002]
[1734994628350,0.052729,94941.0,94935.0,0.054733]
[1734994628658,0.052727,94945.0,94936.0,0.052732]
[1734994630743,0.052728,94944.0,94936.0,0.052732]
[1734994631759,0.052728,94943.0,94936.0,0.052732]
[1734994632056,0.052729,94942.0,94931.0,0.08739623]
[1734994633058,0.052729,94942.0,94936.0,0.052732]
[1734994634451,0.052729,94942.0,94937.0,0.052731]
[1734994634651,0.052729,94942.0,94936.0,0.052732]
[1734994636262,0.052731,94938.0,94932.0,0.08739623]
[1734994637155,0.052731,94938.0,94932.0,0.01439623]
[1734994637360,0.052728,94944.0,94935.0,0.052732]
[1734994637655,0.3608,94946.0,94936.0,0.052732]
[1734994637656,0.052728,94943.0,94936.0,0.052732]
[1734994638260,0.052728,94943.0,94937.0,0.052731]
[1734994638854,0.052729,94942.0,94937.0,0.052731]
[1734994639261,0.3608,94946.0,94932.0,0.01439623]
[1734994639457,0.052732,94936.0,94932.0,0.01439623]
[1734994639662,0.052732,94936.0,94931.0,0.09661678]
[1734994639861,0.052732,94936.0,94931.0,0.052735]
[1734994640161,0.052732,94936.0,94932.0,0.052734]
[1734994641355,0.052732,94936.0,94932.0,0.053734]
[1734994642066,0.14726001,94933.0,94932.0,0.001]
[1734994642257,0.14726001,94933.0,94932.0,0.002]
[1734994643264,0.052734,94933.0,94932.0,0.002]
[1734994643652,0.052734,94933.0,94932.0,0.001]
[1734994643855,0.052734,94933.0,94932.0,0.002]
[1734994644259,0.052734,94933.0,94932.0,0.001]
[1734994644462,0.052734,94933.0,94932.0,0.002]
[1734994644864,0.052734,94933.0,94932.0,0.001]
[1734994645464,0.052736,94929.0,94928.0,0.04428905]
[1734994645670,0.05274,94923.0,94921.0,0.05274]
[1734994645863,0.05274,94923.0,94920.0,0.44959623]
[1734994645864,0.05274,94921.0,94920.0,0.0014]
[1734994646065,0.052744,94915.0,94913.0,0.08739623]
[1734994646264,0.1134,94920.0,94905.0,0.08739623]
[1734994646465,0.052745,94914.0,94909.0,0.052747]
[1734994647056,0.052745,94914.0,94912.0,0.25297949]
[1734994647977,0.17908381,94914.0,94912.0,0.25297949]
[1734994648272,0.17908381,94914.0,94912.0,0.25397949]
[1734994649069,0.052745,94914.0,94912.0,0.25497949]
[1734994651975,0.052745,94914.0,94912.0,0.18197949]
[1734994653076,0.12633881,94917.0,94912.0,0.18197949]
[1734994653371,0.3608,94948.0,94913.0,0.25667471]
[1734994653573,0.3608,94948.0,94941.0,0.052729]
[1734994653778,0.3608,94948.0,94942.0,0.052728]
[1734994654169,0.3608,94948.0,94938.0,0.052731]
[1734994654370,0.052719,94960.0,94938.0,0.052731]
[1734994654574,0.3608,94965.0,94950.0,0.08739623]
[1734994654773,0.052721,94957.0,94950.0,0.08739623]
[1734994654978,0.052721,94956.0,94950.0,0.08739623]
[1734994656173,0.052718,94962.0,94950.0,0.14012023]
[1734994656376,0.052719,94961.0,94950.0,0.22751646]
[1734994656675,0.052715,94968.0,94958.0,0.05272]
[1734994656871,0.1131,94971.0,94958.0,0.08739623]
[1734994657067,0.3608,94965.0,94958.0,0.01439623]
[1734994657272,0.3608,94965.0,94953.0,0.052723]
[1734994657676,0.1131,94971.0,94953.0,0.052723]
[1734994657875,0.052718,94963.0,94960.0,0.08739623]
[1734994658078,0.052718,94963.0,94950.0,0.17479246]
[1734994658275,0.052718,94963.0,94956.0,0.052721]
[1734994660382,0.052718,94963.0,94957.0,0.05272]
[1734994660874,0.1131,94971.0,94956.0,0.001]
[1734994661077,0.052715,94968.0,94960.0,0.08739623]
[1734994661277,0.052715,94967.0,94960.0,0.08739623]
[1734994661486,0.052716,94966.0,94960.0,0.08739623]
[1734994661670,0.3608,94974.0,94957.0,0.001]
[1734994661874,0.0887,94995.0,94973.0,0.3608]
[1734994661875,0.3968,94995.0,94973.0,0.3608]
[1734994662071,0.3968,94995.0,94985.0,0.01439623]
[1734994662381,0.3968,94995.0,94991.0,0.052702]
[1734994663686,0.3968,94995.0,94991.0,0.001]
[1734994663884,0.3968,94995.0,94993.0,0.0527]
[1734994664279,0.036,94995.0,94993.0,0.0527]
[1734994665182,0.036,94995.0,94994.0,0.3608]
[1734994666294,0.036,94995.0,94994.0,0.7216]
[1734994667185,0.036,94995.0,94994.0,0.6486]
[1734994668990,0.1,95000.0,94999.0,0.052697]
[1734994669289,0.1,95000.0,94999.0,0.406777]
[1734994672091,0.1,95000.0,94999.0,0.333777]
[1734994672988,0.1,95000.0,94999.0,0.386474]
[1734994674591,0.052688,95016.0,94999.0,0.333777]
[1734994674783,0.052688,95016.0,95004.0,0.17479246]
[1734994675185,0.052688,95016.0,95004.0,0.08739623]
[1734994675784,0.1069,95015.0,95004.0,0.08739623]
[1734994675984,0.272289,95015.0,95004.0,0.08739623]
[1734994676593,0.2196,95015.0,95004.0,0.08739623]
[1734994676791,0.3608,95006.0,95004.0,0.08739623]
[1734994676989,0.413494,95006.0,94999.0,0.260777]
[1734994677194,0.052695,95004.0,94999.0,0.260777]
[1734994677394,0.3608,95006.0,94999.0,0.30511982]
[1734994677601,0.052695,95003.0,94999.0,0.30511982]
[1734994677895,0.1125,95002.0,94999.0,0.30511982]
[1734994680091,0.1125,95002.0,94999.0,0.35781682]
[1734994680299,0.3608,95006.0,94999.0,0.35781682]
[1734994680300,0.3608,95006.0,95004.0,0.052694]
[1734994680596,0.1125,95014.0,95004.0,0.052694]
[1734994680795,0.165189,95014.0,95004.0,0.052694]
[1734994681198,0.052693,95008.0,94999.0,0.30511982]
[1734994681393,0.3608,95005.0,94999.0,0.30511982]
[1734994682093,0.3608,95005.0,94999.0,0.23211982]
[1734994683395,0.052695,95004.0,94999.0,0.04434282]
[1734994683591,0.052695,95004.0,94996.0,0.08739623]
[1734994683798,0.052695,95004.0,94997.0,0.052698]
[1734994684001,0.1037,95003.0,94997.0,0.052698]
[1734994684392,0.1137,95002.0,94997.0,0.052698]
[1734994684592,0.1137,95002.0,94996.0,0.13985884]
[1734994684895,0.1137,95002.0,94996.0,0.19255784]
[1734994685303,0.1137,95002.0,94997.0,0.052698]
[1734994685897,0.1137,95002.0,94996.0,0.13985884]
[1734994686197,0.05269,95013.0,95002.0,0.052696]
[1734994686404,0.05269,95012.0,95003.0,0.08739623]
[1734994686794,0.05269,95012.0,95003.0,0.14009123]
[1734994687002,0.05269,95012.0,95003.0,0.052695]
[1734994687693,0.052691,95011.0,95003.0,0.052695]
[1734994687894,0.1137,95013.0,95002.0,0.08739623]
[1734994688202,0.052692,95009.0,95002.0,0.08739623]
[1734994688504,0.052692,95008.0,95002.0,0.08739623]
[1734994688708,0.166092,95008.0,95002.0,0.08739623]
[1734994688999,0.3608,95007.0,95002.0,0.08739623]
[1734994690700,0.413493,95007.0,95001.0,0.18359108]
[1734994691096,0.3608,95007.0,95001.0,0.18359108]
[1734994691293,0.052691,95011.0,95003.0,0.052695]
[1734994691793,0.052691,95011.0,95003.0,0.29749788]
[1734994692101,0.052691,95011.0,95003.0,0.22449788]
[1734994692300,0.052691,95011.0,95003.0,0.27719288]
[1734994692502,0.1125,95014.0,95004.0,0.052694]
[1734994692903,0.05269,95013.0,95004.0,0.052694]
[1734994693103,0.1125,95014.0,95002.0,0.3133266]
[1734994693401,0.05269,95012.0,95002.0,0.3133266]
[1734994694292,0.05269,95012.0,95004.0,0.3133266]
[1734994694701,0.05269,95012.0,95004.0,0.3660206]
[1734994695503,0.05269,95012.0,95005.0,0.3133266]
[1734994696605,0.052691,95011.0,95005.0,0.3133266]
[1734994696898,0.052691,95011.0,95005.0,0.2403266]
[1734994697294,0.1125,95014.0,95005.0,0.2403266]
[1734994697594,0.052691,95010.0,95005.0,0.2403266]
[1734994697795,0.18745231,95049.0,95009.0,0.3608]
[1734994698003,0.052658,95070.0,95054.0,0.052667]
[1734994698195,0.052658,95070.0,95061.0,0.3608]
[1734994698399,0.3279,95076.0,95061.0,0.3608]
[1734994698596,0.052661,95065.0,95061.0,0.3608]
[1734994699105,0.052658,95071.0,95061.0,0.3608]
[1734994699310,0.21908392,95080.0,95061.0,0.46515373]
[1734994699793,0.21908392,95080.0,95061.0,0.41249073]
[1734994699989,0.21908392,95080.0,95061.0,0.41349073]
[1734994700390,0.21908392,95080.0,95079.0,0.3608]
[1734994700606,0.052652,95082.0,95079.0,0.3608]
[1734994702002,0.052652,95082.0,95079.0,0.2878]
[1734994702412,0.1059,95087.0,95079.0,0.2878]
[1734994702611,0.05265,95084.0,95079.0,0.2928]
[1734994702797,0.052652,95080.0,95079.0,0.2928]
[1734994702997,0.052652,95080.0,95079.0,0.2878]
[1734994704506,0.1,95100.0,95079.0,0.2878]
[1734994704706,0.052645,95093.0,95092.0,0.3608]
[1734994704905,1.552645,95093.0,95092.0,0.3608]
[1734994705209,0.052645,95093.0,95092.0,0.3608]
[1734994705615,0.037645,95093.0,95092.0,0.3608]
[1734994705908,0.037645,95093.0,95092.0,0.3618]
[1734994706899,0.037645,95093.0,95092.0,0.2888]
[1734994712017,0.037645,95093.0,95092.0,0.2158]
[1734994714618,0.1,95100.0,95093.0,0.052645]
[1734994714619,0.052642,95098.0,95093.0,0.052645]
[1734994715113,0.1,95100.0,95092.0,0.267446]
[1734994715326,0.152641,95100.0,95092.0,0.267446]
[1734994715619,0.152641,95100.0,95093.0,0.052645]
[1734994716413,0.1,95100.0,95093.0,0.052645]
[1734994716618,0.1,95100.0,95097.0,0.052643]
[1734994717217,0.1,95100.0,95099.0,0.052642]
[1734994719718,0.05204675,95136.0,95093.0,0.0988]
[1734994719916,0.05263,95121.0,95113.0,0.3608]
[1734994720116,0.052622,95136.0,95113.0,0.3608]
[1734994720322,0.052631,95120.0,95113.0,0.3608]
[1734994720628,0.3608,95139.0,95113.0,0.3608]
[1734994720918,0.052632,95117.0,95113.0,0.3608]
[1734994721725,0.052634,95114.0,95113.0,0.3608]
[1734994721918,0.052634,95114.0,95100.0,0.08739623]
[1734994721919,0.036634,95114.0,95078.0,0.052653]
[1734994722120,0.052645,95093.0,95090.0,0.08739623]
[1734994722427,0.052645,95093.0,95083.0,0.3608]
[1734994722428,0.05265,95085.0,95083.0,0.3608]
[1734994722621,0.05265,95084.0,95083.0,0.3608]
[1734994723325,0.05265,95084.0,95083.0,0.41446333]
[1734994724329,0.052654,95078.0,95077.0,9.766e-05]
[1734994725027,0.052654,95078.0,95053.0,0.3608]
[1734994725028,0.052657,95072.0,95071.0,0.05227585]
[1734994725324,0.052664,95059.0,95053.0,0.3608]
[1734994725530,0.052664,95059.0,95058.0,0.23731215]
[1734994725735,0.052664,95059.0,95058.0,0.0537085]
[1734994725922,0.052667,95054.0,95053.0,0.3608]
[1734994727523,0.052667,95054.0,95053.0,0.41434522]
[1734994731919,0.052667,95054.0,95053.0,0.34134522]
[1734994735125,0.052664,95059.0,95053.0,0.34134522]
[1734994735327,0.3608,95072.0,95053.0,0.34134522]
[1734994735639,0.052659,95069.0,95063.0,0.3608]
[1734994735929,0.3608,95072.0,95063.0,0.3608]
[1734994736132,0.3608,95094.0,95071.0,0.3608]
[1734994736925,0.052653,95080.0,95071.0,0.3608]
[1734994737231,0.052653,95080.0,95071.0,0.2878]
[1734994737535,0.3608,95094.0,95071.0,0.2878]
[1734994737536,0.052646,95093.0,95071.0,0.2878]
[1734994738125,0.48571944,95117.0,95081.0,0.3608]
[1734994738426,0.48571944,95117.0,95071.0,0.64016554]
[1734994738427,0.12491944,95117.0,95100.0,0.08739623]
[1734994738627,0.052636,95111.0,95101.0,0.3608]
[1734994738821,0.12491944,95117.0,95101.0,0.3608]
[1734994739033,0.07910603,95117.0,95116.0,0.052633]
[1734994740825,0.04909944,95129.0,95116.0,0.052633]
[1734994741025,0.052628,95124.0,95120.0,0.3608]
[1734994741431,0.052629,95123.0,95120.0,0.3608]
[1734994741832,0.052629,95123.0,95119.0,0.08739623]
[1734994742024,0.052629,95123.0,95113.0,0.32302336]
[1734994742426,1.5,95169.0,95113.0,0.32302336]
[1734994742427,0.3608,95152.0,95120.0,0.3608]
[1734994742635,0.35680001,95141.0,95133.0,0.052623]
[1734994743437,0.35680001,95141.0,95138.0,0.05262]
[1734994744242,0.3608,95152.0,95137.0,0.3608]
[1734994744540,0.3608,95152.0,95142.0,0.08739623]
[1734994745445,0.3608,95152.0,95142.0,0.14001423]
[1734994747733,0.3608,95152.0,95145.0,0.052616]
[1734994748833,0.3608,95152.0,95142.0,0.08739623]
[1734994751028,0.3608,95152.0,95142.0,0.14001423]
[1734994752144,0.3608,95152.0,95142.0,0.06701423]
[1734994753342,0.3608,95152.0,95142.0,0.01439623]
[1734994753545,0.3608,95152.0,95143.0,0.052617]
[1734994755035,0.413413,95152.0,95143.0,0.052617]
[1734994755236,0.052613,95151.0,95142.0,0.01439623]
[1734994756941,0.052613,95151.0,95140.0,0.08739623]
[1734994757143,0.3608,95152.0,95150.0,0.052614]
[1734994757348,0.3608,95152.0,95151.0,0.052613]
[1734994757644,0.413413,95152.0,95141.0,0.14001523]
[1734994757850,0.413413,95152.0,95141.0,0.08739623]
[1734994758035,0.3608,95152.0,95143.0,0.052618]
[1734994758235,0.3608,95152.0,95141.0,0.08739623]
[1734994758444,0.3608,95152.0,95144.0,0.052617]
[1734994758745,0.3608,95152.0,95141.0,0.08739623]
[1734994758943,0.3608,95152.0,95146.0,0.052616]
[1734994760239,0.052611,95156.0,95146.0,0.052616]
[1734994760443,0.052611,95156.0,95141.0,0.08739623]
[1734994760444,0.052609,95160.0,95149.0,0.3608]
[1734994760640,0.052609,95160.0,95151.0,0.052613]
[1734994761554,0.3608,95157.0,95149.0,0.3608]
[1734994761846,0.3608,95157.0,95140.0,0.08739623]
[1734994761847,0.1049,95156.0,95140.0,0.14001523]
[1734994762042,0.052614,95150.0,95140.0,0.08739623]
[1734994762243,0.1031,95149.0,95140.0,0.05318947]
[1734994762455,0.1031,95149.0,95137.0,0.3608]
[1734994762456,0.052619,95141.0,95137.0,0.3608]
[1734994762754,0.05262,95138.0,95137.0,0.3608]
[1734994762951,0.3608,95148.0,95137.0,0.41383158]
[1734994763252,0.052612,95154.0,95147.0,0.052615]
[1734994763447,0.052615,95149.0,95145.0,0.3608]
[1734994763648,0.052615,95148.0,95145.0,0.3608]
[1734994763850,0.052616,95146.0,95145.0,0.3608]
[1734994764047,0.052616,95146.0,95138.0,0.05262]
[1734994764250,0.052618,95143.0,95137.0,0.41383158]
[1734994764551,0.052618,95142.0,95137.0,0.41383158]
[1734994764848,0.3608,95150.0,95137.0,0.05303158]
[1734994765054,0.05262,95140.0,95136.0,0.08739623]
[1734994765255,0.3608,95150.0,95141.0,0.052618]
[1734994765554,0.052614,95150.0,95141.0,0.052618]
[1734994765855,0.052615,95148.0,95141.0,0.052618]
[1734994766150,0.3608,95159.0,95150.0,0.052613]
[1734994766351,0.3608,95159.0,95151.0,0.3608]
[1734994767050,0.05261,95157.0,95149.0,0.01439623]
[1734994767443,0.3608,95159.0,95149.0,0.06701023]
[1734994767647,0.3608,95159.0,95149.0,0.01439623]
[1734994768159,0.052612,95153.0,95149.0,0.06651202]
[1734994768352,0.052612,95153.0,95149.0,0.01439623]
[1734994768550,0.3608,95159.0,95149.0,0.01439623]
[1734994768551,0.052614,95151.0,95149.0,0.01439623]
[1734994768753,0.052616,95147.0,95145.0,0.2379862]
[1734994768949,0.0998,95146.0,95145.0,0.05383946]
[1734994769143,0.0998,95146.0,95142.0,0.24341868]
[1734994769744,0.0998,95146.0,95144.0,0.3608]
[1734994770861,0.3608,95160.0,95152.0,0.052613]
[1734994771360,0.052606,95165.0,95153.0,0.3608]
[1734994772054,0.052606,95165.0,95159.0,0.17324055]
[1734994773360,0.052606,95165.0,95154.0,0.30771424]
[1734994774763,0.052606,95164.0,95156.0,0.30771424]
[1734994775859,0.1937,95180.0,95161.0,0.7216]
[1734994776052,0.0986,95179.0,95178.0,0.3608]
[1734994777055,0.15721287,95186.0,95178.0,0.2878]
[1734994777662,0.15721287,95186.0,95179.0,0.052598]
[1734994777966,0.3608,95187.0,95179.0,0.052598]
[1734994778165,0.3608,95190.0,95178.0,0.2878]
[1734994779155,0.3608,95190.0,95186.0,0.18439074]
[1734994780661,0.3608,95190.0,95178.0,0.39186015]
[1734994782361,0.3608,95190.0,95178.0,0.10406015]
[1734994782566,0.3608,95190.0,95180.0,0.08739623]
[1734994782767,0.3608,95190.0,95187.0,0.052593]
[1734994782961,0.3608,95190.0,95180.0,0.08739623]
[1734994783269,0.3608,95190.0,95188.0,0.052593]
[1734994783672,0.3608,95190.0,95189.0,0.18408201]
[1734994785266,0.3608,95190.0,95184.0,0.18408201]
[1734994785464,0.3608,95190.0,95184.0,0.23642224]
[1734994785865,0.052595,95185.0,95184.0,0.23642224]
[1734994787063,0.3608,95190.0,95184.0,0.16342224]
[1734994787374,0.3608,95190.0,95188.0,0.052593]
[1734994787571,0.036,95196.0,95188.0,0.052593]
[1734994789370,0.036,95196.0,95186.0,0.08739623]
[1734994789568,0.036,95196.0,95186.0,0.13999023]
[1734994789766,0.036,95196.0,95187.0,0.052593]
[1734994790067,0.036,95196.0,95189.0,0.052592]
[1734994790274,0.036,95196.0,95190.0,0.052592]
[1734994792072,0.036,95196.0,95186.0,0.08739623]
[1734994792971,0.036,95196.0,95190.0,0.052591]
[1734994794581,0.036,95196.0,95186.0,0.08739623]
[1734994794780,0.036,95196.0,95193.0,0.05259]
[1734994795475,0.036,95196.0,95194.0,0.052589]
[1734994797069,0.1105,95200.0,95187.0,0.340389]
[1734994797273,0.09635048,95200.0,95188.0,0.1008]
[1734994797783,0.09635048,95200.0,95189.0,0.1049]
[1734994798080,0.09635048,95200.0,95198.0,0.052587]
[1734994798576,0.09275789,95200.0,95198.0,0.052587]
[1734994799382,0.05914789,95200.0,95198.0,0.052587]
[1734994799882,0.05914789,95200.0,95198.0,0.10437249]
[1734994800382,0.05914789,95200.0,95198.0,0.05178549]
[1734994800677,0.052571,95228.0,95198.0,0.05178549]
[1734994800678,0.3608,95232.0,95200.0,0.1747]
[1734994800881,0.09429458,95235.0,95228.0,0.3608]
[1734994801082,0.12559307,95236.0,95234.0,0.052567]
[1734994801274,0.3608,95250.0,95228.0,0.3608]
[1734994801275,0.18734916,95254.0,95244.0,0.052562]
[1734994801478,0.0128014,95254.0,95253.0,0.227257]
[1734994801678,0.12136475,95277.0,95276.0,0.052544]
[1734994801983,0.05710476,95277.0,95276.0,0.052544]
[1734994802383,0.05710476,95277.0,95263.0,0.3608]
[1734994802577,0.052546,95273.0,95263.0,0.3608]
[1734994802771,0.3608,95274.0,95263.0,0.13991161]
[1734994803080,0.3608,95264.0,95263.0,0.08739623]
[1734994803385,0.3608,95274.0,95262.0,0.3608]
[1734994803586,0.09413852,95286.0,95273.0,0.3608]
[1734994803885,0.09413852,95286.0,95276.0,0.08739623]
[1734994804186,0.052536,95292.0,95276.0,0.17479246]
[1734994804379,0.3608,95295.0,95280.0,0.08739623]
[1734994804574,0.3608,95281.0,95280.0,0.08739623]
[1734994804779,0.3608,95281.0,95259.0,0.40647489]
[1734994804780,0.052542,95280.0,95271.0,0.08739623]
[1734994804984,0.3608,95272.0,95271.0,0.08739623]
[1734994805375,0.3608,95272.0,95262.0,0.08739623]
[1734994805681,0.05255,95266.0,95262.0,0.39511047]
[1734994805879,0.07676549,95300.0,95262.0,0.30771424]
[1734994806074,0.3608,95272.0,95270.0,0.08739623]
[1734994806290,0.3608,95272.0,95270.0,0.052548]
[1734994806479,0.3608,95272.0,95262.0,0.39511047]
[1734994806480,0.3426553,95272.0,95262.0,0.39511047]
[1734994806675,0.052541,95282.0,95268.0,0.3608]
[1734994806885,0.3608,95284.0,95274.0,0.08739623]
[1734994807081,0.052543,95278.0,95274.0,0.01439623]
[1734994807279,0.3608,95275.0,95274.0,0.01439623]
[1734994807480,0.158941,95283.0,95269.0,0.3608]
[1734994808086,0.3608,95284.0,95273.0,0.13994223]
[1734994808588,0.3608,95284.0,95275.0,0.052545]
[1734994810078,0.3608,95284.0,95275.0,0.09718193]
[1734994810590,0.3608,95284.0,95275.0,0.04463693]
[1734994810782,0.3608,95284.0,95281.0,0.052541]
[1734994811177,0.3608,95294.0,95281.0,0.3608]
[1734994811487,0.3608,95294.0,95285.0,0.052539]
[1734994811987,0.3608,95294.0,95284.0,0.06693523]
[1734994812191,0.3608,95294.0,95284.0,0.08739623]
[1734994812782,0.3608,95294.0,95281.0,0.3608]
[1734994812783,0.3608,95285.0,95280.0,0.08739623]
[1734994813290,0.052536,95291.0,95280.0,0.08739623]
[1734994814100,0.052536,95291.0,95280.0,0.13105732]
[1734994814293,0.052536,95291.0,95280.0,0.04366109]
[1734994814483,0.052536,95291.0,95277.0,0.3608]
[1734994814684,0.052536,95291.0,95280.0,0.08739623]
[1734994815087,0.3608,95294.0,95282.0,0.052541]
[1734994816089,0.3608,95294.0,95280.0,0.08739623]
[1734994816285,0.3608,95294.0,95287.0,0.052538]
[1734994817097,0.3608,95307.0,95280.0,0.08739623]
[1734994817098,0.3608,95307.0,95293.0,0.052535]
[1734994817295,0.3608,95307.0,95290.0,0.08739623]
[1734994817296,0.052529,95303.0,95290.0,0.08739623]
[1734994817482,0.3608,95307.0,95290.0,0.08739623]
[1734994817789,0.4664,95299.0,95290.0,0.08739623]
[1734994818199,0.2107,95299.0,95290.0,0.08739623]
[1734994818391,0.052523,95315.0,95290.0,0.08739623]
[1734994818392,0.4687,95309.0,95295.0,0.3608]
[1734994818898,0.4687,95309.0,95307.0,0.052527]
[1734994819499,0.1079,95309.0,95307.0,0.052527]
[1734994819886,0.3608,95317.0,95303.0,0.3608]
[1734994820189,0.3608,95317.0,95312.0,0.052524]
[1734994821482,0.3608,95317.0,95307.0,0.17479246]
[1734994822098,0.3608,95317.0,95312.0,0.052524]
[1734994822482,0.1068,95327.0,95307.0,0.17479246]
[1734994822684,0.1068,95327.0,95317.0,0.08739623]
[1734994822987,0.1068,95327.0,95317.0,0.13991723]
[1734994823985,0.1068,95327.0,95318.0,0.052521]
[1734994824297,0.1068,95327.0,95319.0,0.05252]
[1734994824597,0.1068,95327.0,95322.0,0.052519]
[1734994824786,0.1068,95327.0,95317.0,0.08739623]
[1734994824986,0.1068,95327.0,95317.0,0.13991723]
[1734994825596,0.3608,95328.0,95317.0,0.13991723]
[1734994825893,0.3608,95328.0,95317.0,0.17755459]
[1734994826095,0.052518,95324.0,95317.0,0.12503359]
[1734994826393,0.052516,95328.0,95317.0,0.03763736]
[1734994826690,0.3608,95346.0,95317.0,0.03763736]
[1734994826691,0.3608,95364.0,95351.0,0.052503]
[1734994826889,0.3608,95364.0,95354.0,0.052501]
[1734994827088,0.3608,95364.0,95356.0,0.0525]
[1734994827288,0.3608,95364.0,95341.0,0.3608]
[1734994827490,0.103,95363.0,95350.0,0.08739623]
[1734994827690,0.3608,95364.0,95350.0,0.08739623]
[1734994827889,0.4661,95369.0,95357.0,0.052499]
[1734994828191,0.4661,95369.0,95359.0,0.08739623]
[1734994828381,0.4661,95369.0,95360.0,0.35284]
[1734994828887,0.1053,95369.0,95360.0,0.35284]